Cogmind - Beta 16 @@@ ROGUE MODE // 2025.12.04 @ 19:14:58 Player: omewwes Result: Destroyed by D-53 Grenadier with Mini Grenade Launcher Performance ------------- Evolutions (0) 0 Regions Visited (2) 400 Robots Destroyed (11) 55 Value Destroyed (111) 111 Prototype IDs (0) 0 Alien Tech Used (0) 0 Bonus (14) 14 TOTAL SCORE: 580 Bonus ------- Follower Combat Kills 14 Cogmind --------- Core Integrity 0/250 Matter 281/300 Energy 100/100 System Corruption 0% Temperature Cool (0) Movement Core (150) Ox2 Location -10/Mines Parts ------- > --- POWER (1) -------- (None) > --- PROPULSION (2) --- (None) > --- UTILITY (2) ------ Small Storage Unit Targeting Computer > --- WEAPON (2) ------- Heavy Battle Rifle > --- INVENTORY (8) ---- Ion Engine Heat Sink Medium Matter Pod (100) Seismic Detector Utility Shielding Light Armor Plating Hacking Suite Peak State ------------ > --- POWER ------------ Makeshift Power Source > --- PROPULSION ------- Aluminum Leg Aluminum Leg > --- UTILITY ---------- Small Storage Unit Targeting Computer > --- WEAPON ----------- Small Laser Light Cannon > --- INVENTORY -------- Ion Engine Heat Sink Medium Matter Pod Seismic Detector Utility Shielding Light Armor Plating Hacking Suite Grenade Launcher [Rating: 11] Favorites ----------- Power Ion Engine Engine Ion Engine Propulsion Aluminum Leg Leg Aluminum Leg Utility Small Storage Unit Device Sensor Array Storage Small Storage Unit Processor Targeting Computer Weapon Small Laser Energy Gun Small Laser Ballistic Gun Heavy Battle Rifle Ballistic Cannon Light Cannon Launcher Grenade Launcher Build | -11 -10 -10 ------- Run | Yrd Mat Min Slots Evolved . | . . . Power . | . . . Propulsion . | . . . Utility . | . . . Weapon . | . . . Parts Attached 12 | 6 3 3 Power 2 | 1 . 1 Engine 2 | 1 . 1 Core . | . . . Reactor . | . . . Propulsion 2 | 2 . . Treads . | . . . Leg 2 | 2 . . Wheel . | . . . Hover . | . . . Flight . | . . . Utility 3 | 1 2 . Device 1 | . 1 . Storage 1 | 1 . . Processor 1 | . 1 . Hackware . | . . . Protection . | . . . Artifact . | . . . Weapon 5 | 2 1 2 Energy Gun 2 | 2 . . Energy Cannon . | . . . Ballistic Gun 1 | . . 1 Ballistic Cannon 1 | . 1 . Launcher 1 | . . 1 Special Weapon . | . . . Impact Weapon . | . . . Slashing Weapon . | . . . Piercing Weapon . | . . . Special Melee Weapon . | . . . Unidentified Prototypes . | . . . Parts Lost 6 | . . 6 Power 1 | . . 1 Propulsion 2 | . . 2 Utility . | . . . Weapon 3 | . . 3 Highest Loss Streak 6 | . . 6 To Critical Strikes . | . . . Average Backups 5 | . 5 7 Power . | . 1 1 Propulsion . | . . . Utility 3 | . 3 5 Weapon . | . . . Tool/Special . | . . . Unused Backups 8 | . 1 7 Power 1 | . . 1 Propulsion . | . . . Utility 7 | . 1 6 Weapon . | . . . Tool/Special . | . . . Average Slot Usage (%) 97 | . 98 95 Engine 13 | . 14 12 Leg 27 | . 28 26 Device 2 | . 4 . Storage 14 | . 14 14 Processor 10 | . 8 14 Energy Gun 14 | . 16 12 Ballistic Cannon 12 | . 11 12 Peak Build Rating 11 | 6 8 11 Average Rating 7 | 4 7 8 On Entrance 4 | . 6 7 Avg Prop Armor Cover (%) . | . . . Naked Turns . | . . . Heaviest Build 15 | 13 15 14 Greatest Support 20 | 20 20 20 Greatest Overweight (x) 2 | . . 2 Average Overweight (x) . | . . . Largest Inventory Capacity 8 | 8 8 8 Average Capacity 7 | 6 8 8 Most Carried 8 | 1 8 8 Average Carried 5 | . 5 7 Final Capacity 8 | 8 8 8 Final Carried 7 | 1 7 7 Class Distribution -------------------- 100% | Mutant Dominant Class ---------------- Mutant | -10/Materials Mutant | -10/Mines Resources | -11 -10 -10 ----------- Run | Yrd Mat Min Matter Collected 504 | 214 232 58 Remotely . | . . . Salvage Created 277 | . 253 24 Parts 20 | . 14 6 Haulers Intercepted . | . . . Recyclers Shooed 2 | . 2 . Parts Field Recycled . | . . . Retrieved Matter . | . . . Parts Self-Destructed . | . . . Prevented . | . . . Parts Restored . | . . . Kills | -11 -10 -10 ------- Run | Yrd Mat Min Combat Hostiles Destroyed 5 | . 4 1 Guns 1 | . 1 . Cannons 3 | . 3 . AOE 1 | . . 1 Classes Destroyed 6 | . 5 1 Worker 2 | . 1 1 Tunneler 1 | . . 1 Recycler 2 | . 2 . Operator 1 | . 1 . Swarmer 4 | . 3 1 Grunt 1 | . 1 . Best Kill Streak 3 | . 3 2 Combat Bots Only 3 | . 3 1 Max Kills in Single Turn 2 | . 1 2 Gunslinging . | . . . Exploded 1 | . . 1 Melee . | . . . Uniques/NPCs Destroyed . | . . . Combat | -11 -10 -10 -------- Run | Yrd Mat Min Hostile Shots Fired 27 | . 9 18 Missed 4 | . 2 2 Hits 23 | . 7 16 Projectile 23 | . 7 16 AOE 17 | . . 17 Damage Taken 799 | . 59 740 Core 250 | . 10 240 Absorbed by Shields . | . . . Core Remaining (%) 100 | 100 . . Volleys Fired 26 | . 14 12 Largest 2 | . 2 2 Hottest 70 | . 70 70 Shots Fired 46 | . 27 19 Gun 23 | . 13 10 Cannon 21 | . 14 7 Launcher 2 | . . 2 Special . | . . . Kinetic 24 | . 14 10 Thermal 20 | . 13 7 Explosive 2 | . . 2 Electromagnetic . | . . . Robot Hit Streak 6 | . 5 6 Robot Miss Streak 3 | . 3 3 Penetration Max . | . . . Secondary Targets . | . . . Shots Hit Robots 28 | . 17 11 Core Hits 14 | . 10 4 Critical Kills . | . . . Critical Parts Destroyed . | . . . Critical Strikes 2 | . 2 . Blast 2 | . 2 . Melee Attacks . | . . . Impact . | . . . Slashing . | . . . Piercing . | . . . Sneak Attacks . | . . . Combat Hostiles . | . . . Follow-up Attacks . | . . . Damage Inflicted 505 | . 260 245 Guns 177 | . 79 98 Cannons 239 | . 181 58 Explosions 85 | . . 85 Melee . | . . . Ramming 4 | . . 4 Kinetic 304 | . 181 123 Thermal 112 | . 79 33 Explosive 85 | . . 85 Electromagnetic . | . . . Impact . | . . . Slashing . | . . . Piercing . | . . . Highest Corruption . | . . . Average Corruption . | . . . Corruption Purged . | . . . Corruption Blocked . | . . . Overload Shots . | . . . Overflow Damage . | . . . Projectiles . | . . . Explosions . | . . . Melee . | . . . Knockbacks 1 | . 1 . Impact . | . . . Kinetic 1 | . 1 . Secondary . | . . . Self-Inflicted Damage 24 | . . 24 Shots 1 | . . 1 Rammed . | . . . Targets Rammed 1 | . . 1 Kicked 1 | . . 1 Crushed . | . . . Highest Temperature 48 | . 36 48 Average Temperature 13 | . 12 16 Received Heat Transfer 6 | . 6 . Siege Activations . | . . . Martial Activations . | . . . Shielding Activations . | . . . Robots Disrupted . | . . . Combat Hostiles . | . . . Robots Corrupted . | . . . Combat Hostiles . | . . . Parts Fried . | . . . Impact Corruptions . | . . . Robots Melted . | . . . Combat Hostiles . | . . . Parts Melted . | . . . Heat Transferred 250 | . 175 75 Parts Sabotaged . | . . . Parts Stolen . | . . . Parts Stripped . | . . . Power Chain Reactions . | . . . Alert | -11 -10 -10 ------- Run | Yrd Mat Min Maximum Alert Level . | . . . Low Security (%) 100 | 100 100 100 Level 1 . | . . . Level 2 . | . . . Level 3 . | . . . Level 4 . | . . . Level 5 . | . . . High Security . | . . . Max Security . | . . . Peak Influence 74 | . 71 74 Initial . | . . . Average 12 | . 15 12 Influence Increases 207 | . 118 89 Destroy 0b10 Robot/C 140 | . 80 60 Destroy 0b10 Robot/NC 30 | . 20 10 Destroy Leader 20 | . 10 10 Allied During Kill 4 | . . 4 Successful Hack 7 | . 7 . Destroy Structure 6 | . 1 5 Influence Decreases 207 | . 116 91 Entered New Map 2 | . . 2 Time Decay 181 | . 116 65 Lost Part 4 | . . 4 Lost Ally 20 | . . 20 Squads Dispatched . | . . . Investigation . | . . . Extermination . | . . . Reinforcement . | . . . Assault . | . . . Garrison . | . . . Intercept . | . . . Searches Triggered . | . . . Construction Impeded . | . . . Haulers Reinforced . | . . . Active Scanning Responses . | . . . Cargo Convoy Interrupts . | . . . Stealth | -11 -10 -10 --------- Run | Yrd Mat Min Distress Signals . | . . . Communications Jammed . | . . . Distress Signals . | . . . Times Spotted 14 | . 5 9 Peak Tracking Total 12 | . 3 12 Tactical Retreats 1 | . . 1 Traps | -11 -10 -10 ------- Run | Yrd Mat Min Traps Triggered . | . . . Indirectly . | . . . Trap Hack Attempts . | . . . Triggered . | . . . Disarmed 4 | . 4 . Reprogrammed . | . . . Reused . | . . . Traps Extracted . | . . . Installed . | . . . Triggered . | . . . Machines | -11 -10 -10 ---------- Run | Yrd Mat Min Machines Disabled . | . . . Max in Single Turn . | . . . Machines Repaired . | . . . Machines Dismantled . | . . . Machines Sabotaged . | . . . Overloaded Fab Kills . | . . . Hacking | -11 -10 -10 --------- Run | Yrd Mat Min Machines Accessed 3 | . 3 . Terminals 3 | . 3 . Fabricators . | . . . Repair Stations . | . . . Recycling Units . | . . . Scanalyzers . | . . . Garrison Access . | . . . Total Hacks 7 | . 7 . Successful 4 | . 4 . Failed 3 | . 3 . Catastrophic 1 | . 1 . Database Lockouts . | . . . Manual 1 | . 1 . Terminals 7 | . 7 . Fabricators . | . . . Repair Stations . | . . . Recycling Units . | . . . Scanalyzers . | . . . Garrison Access . | . . . Terminal Hacks 4 | . 4 . Terminal Index 1 | . 1 . Disarm Traps 2 | . 2 . Recall Investigation 1 | . 1 . Fabricator Hacks . | . . . Repair Station Hacks . | . . . Recycling Unit Hacks . | . . . Scanalyzer . | . . . Garrison Access Hacks . | . . . Unauthorized Hacks . | . . . Terminals . | . . . Fabricators . | . . . Repair Stations . | . . . Recycling Units . | . . . Scanalyzers . | . . . Garrison Access . | . . . Data Cores Recovered 1 | . 1 . Used . | . . . Hacking Detections 2 | . 2 . Full Trace Events . | . . . Feedback Events . | . . . Feedback Blocked . | . . . Robot Schematics Acquired . | . . . Robots Built . | . . . Authchips . | . . . Time . | . . . Total Robot Build Rating . | . . . Part Schematics Acquired . | . . . Parts Built . | . . . Authchips . | . . . Time . | . . . Total Part Build Rating . | . . . Part Studies Acquired . | . . . Parts Repaired . | . . . Time . | . . . Parts Recycled . | . . . Recycled Matter . | . . . Retrieved Matter . | . . . Retrieved Components . | . . . Parts Scanalyzed . | . . . Part Schematics Acquired . | . . . Parts Damaged . | . . . Bothacking | -11 -10 -10 ------------ Run | Yrd Mat Min Used RIF Installer . | . . . Robots Hacked . | . . . Non-combat . | . . . Combat . | . . . Robot Hacks Applied . | . . . Relay Couplers Released . | . . . Fabnet Peak Effective % . | . . . Robots Rewired . | . . . Allies Hacked . | . . . Hacks Repelled . | . . . Allies | -11 -10 -10 -------- Run | Yrd Mat Min Total Allies 2 | . . 2 Largest Group 1 | . . 1 Highest-Rated Group 31 | . . 31 Highest-Rated Ally 31 | . . 31 Total Orders . | . . . Ally Attacks 14 | . . 14 Total Damage 122 | . . 122 Kills 4 | . . 4 Allies Corrupted . | . . . Allies Melted . | . . . Intel | -11 -10 -10 ------- Run | Yrd Mat Min Active Infowar (turns) 138 | . 138 . Sensors 138 | . 138 . Robot Analysis Total . | . . . Derelict Logs Recovered 1 | . . 1 Drone Launches . | . . . Drone Recoveries . | . . . Exploration | -11 -10 -10 ------------- Run | Yrd Mat Min Turns Passed 833 | 65 419 349 Spaces Moved 611 | 52 304 255 Core 16 | 10 . 6 Treads . | . . . Legs 595 | 42 304 249 Wheels . | . . . Hover . | . . . Flight . | . . . Fastest Speed 50 | 50 120 100 Average Speed 118 | 106 120 119 Slowest Speed 150 | 120 120 150 Overloaded Moves . | . . . Propulsion Burnouts . | . . . Robots Hopped . | . . . Potential Cave-ins . | . . . Cave-ins Triggered . | . . . Exploration Rate (%) 29 | 4 30 54 Regions Visited 2 Branch Regions 1 Pre-discovered Areas 2 | . . 2 Known Exits Taken . | . . . Unknown Exits Taken 2 | 1 1 . Scrap Searched 2 | . . 2 Spaces Dug . | . . . Terrain Destroyed 5 | . . 5 Melee . | . . . Projectile . | . . . AOE 5 | . . 5 Terrain Rammed . | . . . Walls Destroyed . | . . . Machines Disabled . | . . . Actions | -11 -10 -10 --------- Run | Yrd Mat Min Total 669 | 58 331 280 Wait 4 | . 3 1 Move 609 | 51 303 255 Hop . | . . . Pick Up 9 | 1 5 3 Fast Attach 10 | 6 3 1 Attach 1 | . . 1 Detach 2 | . 2 . Swap 3 | . . 3 Drop 4 | . 1 3 Fire 26 | . 14 12 Melee . | . . . Ram . | . . . Kick 1 | . . 1 Crush . | . . . Escape Stasis . | . . . Rewire . | . . . Trap . | . . . Miscellaneous . | . . . Route ------- -11/Scrapyard -10/Materials (discovered 2 exits: [*Mat] / [*Min]) -10/Mines (discovered 1 exit: [*Mat]) History --------- Turn | Location | Event 3 | -11/Scrapyard | Discovered new exit (range 15) 66 | -11/Scrapyard | Entered Materials 165 | -10/Materials | Discovered new exit (range 8) 312 | -10/Materials | Build established: Mutant 326 | -10/Materials | Discovered new exit (range 3) 485 | -10/Materials | Entered Mines 534 | -10/Mines | Found a Scrap Suit stashed away for nefarious purposes 587 | -10/Mines | Learned location of Storage (-7) 592 | -10/Mines | Discovered new exit (range 4) 696 | -10/Mines | Assembled infested the area 701 | -10/Mines | Assisted by a Guerilla fighting off Assembled 812 | -10/Mines | Core integrity fell below 50% 822 | -10/Mines | A weapon hastily lodged in a ceiling crevice suddenly fell to the ground 831 | -10/Mines | Core integrity fell below 20% 834 | -10/Mines | Destroyed by D-53 Grenadier with Mini Grenade Launcher Last Messages --------------- 00736_ U-05 Engineer builds a Wall. 00739_ R-06 Scavenger collects Flight Unit. 00740_ U-05 Engineer lays Concrete. 00741_ U-05 Engineer builds a Wall. 00762_ Kicked T-07 Excavator out of the way. 00768_ Acquired 14 matter. 00795_ C-45 Heavy ARC bursts open, deploying its payload. 00795_ D-53 Grenadier unfolds itself. 00797_ Laser Drill disabled. 00801_ Sml. Laser destroyed. 00801_ Lgt. Cannon destroyed. 00803_ D-53 Grenadier destroyed. 00805_ Grenade Launcher destroyed. 00805_ Aluminum Leg destroyed. 00807_ Mak. Power Source destroyed. 00815_ The unstable cave ceiling collapses. 00820_ Aluminum Leg destroyed. 00822_ A Hvy. Battle Rifle has been hastily shoved under some rubble with a note attached: "To battle!" 00824_ Acquired Hvy. Battle Rifle. Map ----- +----------------------------------------------------+ | ?????????????????????????????????????? | | ????????????????????????????????????## | | ????????????????????????????????????# | | ????????????????????????????????????# | | ????????????????????????????????????# | | ????????????????????????????????????# | | ????????????????????????????????????# | | ???????????????????????????########## | | ??????????????????????# ??# # | | ?????????????????????# ??# """ # | | ????????????????????# ??# """ # | | ???????????????????? ??# """ *#* | | ???????????????????? #??# =%[ | | ????????????????????? ##?# """ *[ | | ????????????????????? ### """ ## | | ?????????????????????? ## """ % ## | | ?????????????????????? # ! #? | | ??????????????????????# # #? | | ??????????#####??????## ###########? | | ??????????? #?????## ############ | | ??????????? ##???## # ## # | | ?????????### ##### | | ?????????# ## | | ???????# # ## # | | ?????### ## # | | ???### @ # | | ???# | | ??# # ## | | ??# d ## # # #### | | ??## #?### #??## | | ???## # ##???#### ##???# | | ????## #########???????# ##????# | | ?????## ????????????????# #?????# | | ??????# ?????????????????# #?????# | | ??????# ????????????????? #?????# | | ??????## ????????????????# ###?????# | | ???????##?????????????????# ????????## | | ??????????????????????????# ????????## | | ?????????????????????????? ???????## | | ?????????????????????????? ???????# | | ?????????????????????????? ???????## | | ??????????????????????????""????????## | | ?????????????????????????????????????? | | ?????????????????????????????????????? | | ?????????????????????????????????????? | | ?????????????????????????????????????? | | ?????????????????????????????????????? | | ?????????????????????????????????????? | | ?????????????????????????????????????? | | ?????????????????????????????????????? | +----------------------------------------------------+ Best States ------------- Heat Dissipation 25 Energy Generation 15 Energy Capacity 250 Matter Stores 300 Matter Capacity 300 Sight Range 16 Robot Scan Range 14 Terrain Scan Density 10 Evasion (%) 55 Targeting Accuracy 5 Item Schematics ----------------- None Robot Schematics ------------------ None Fabricated ------------ Nothing Repaired ---------- Nothing Studied --------- None Alien Tech Used ----------------- None Achievements -------------- None Challenges ------------ None Game ------ Seed HellfireReactionInterpreter Manual? 0 Play Time 00:06:58 Cumulative 132.6 hours Start 2025.12.04 @ 19:10:00 End 2025.12.04 @ 19:14:58 Sessions 1 Manual Loads 0 Difficulty Rogue Special Mode None Game No. 109 Rogue 109 Adventurer 0 Explorer 0 Win Type - Total 1 Types 1/0/0/0/0/0/0/0/0/0 Lore% 63 Gallery% 64 Achievement% 53 Wizard Run 0 Options --------- Layout 0 ASCII 0 Keyboard 1 Movement Vi Keybinds 0 Fullscreen 1 Font 18/SmallcapsGlow Map View 76x50 Zoom Use 0% Tactical HUD 1 Map Filters NONE Filters NONE Steam 1 RUN: 9256d82b-47e2-4b69-9d08-5b7964d7a402